Cogmind - Beta 13 @@@ ROGUE MODE // 2024.03.15 @ 15:03:48 Player: ldi (hl). (hl) Result: Destroyed by G-73 Enforcer with Phase Gun Performance ------------- Evolutions (6) 3000 Regions Visited (24) 4800 Robots Destroyed (167) 835 Value Destroyed (6339) 6339 Prototype IDs (26) 520 Alien Tech Used (1) 200 Bonus (3375) 3375 TOTAL SCORE: 19069 Bonus ------- High Alert Combat Kills 86 Follower Combat Kills 1716 Entered DSFs 500 Met Data Miner 300 Acquired ECA 300 Met Warlord at Base 500 MAIN.C Attacked Warlord 500 Friendly Fire -527 Cogmind --------- Core Integrity 0/1150 Matter 260/300 Energy 99/100 System Corruption 26% Temperature Hot (209) Movement Core (50) Location -4/Upper Caves Parts ------- > --- POWER (3) -------- (None) > --- PROPULSION (3) --- (None) > --- UTILITY (10) ----- (None) > --- WEAPON (3) ------- (None) > --- INVENTORY (5) ---- Plasma Rifle Phasing Sabre Peak State ------------ > --- POWER ------------ Micro Fission Core Vortex Chain Reactor > --- PROPULSION ------- Antigrav System Cooled Antigrav System Cooled Antigrav System > --- UTILITY ---------- Advanced Cooling System Experimental Energy Well Advanced Remote Shield Ghost Barrier Improved System Guard > --- WEAPON ----------- Matter Neutralizer KE Penetrator Hardcell Cannon > --- INVENTORY -------- Improved Treads Experimental Myomer Leg Experimental Myomer Leg [Rating: 112] Favorites ----------- Power Ion Engine Engine Ion Engine Power Core Light Fission Core Reactor Light Antimatter Reactor Propulsion Armored Treads Treads Armored Treads Leg Aluminum Leg Hover Unit Cooled Antigrav System Utility Improved Signal Interpreter Device Weapon Cycler Storage Large Storage Unit Processor Improved Signal Interpreter Hackware Advanced System Shield Protection Improved Medium Armor Plating Weapon Precision Assault Rifle Energy Gun Gatling Laser Energy Cannon Light EM Pulse Cannon Ballistic Gun Precision Assault Rifle Ballistic Cannon Hardcell Cannon Launcher Missile Launcher Special Weapon Enhanced Flamer Slashing Weapon Phasing Sabre Piercing Weapon Heavy Pick Build | -11 -10 -10 -9 -9 -8 -7 -7 -7 -7 -7 -7 -6 -6 -6 -6 -6 -5 -5 -5 -5 -4 -4 -4 -4 ------- Run | Yrd Mat Min Mat Min Mat Fac Was Fac Low Low Dat Pro Fac Was Fac DSF Fac Upp Upp War Pro Fac Upp Upp Slots Evolved 12 | . . . 2 . 2 2 . . . . . . 2 . . . 2 . . . . 2 . . Power 2 | . . . . . . . . . . . . . . . . . . . . . . 2 . . Propulsion 1 | . . . 1 . . . . . . . . . . . . . . . . . . . . . Utility 8 | . . . 1 . 2 1 . . . . . . 2 . . . 2 . . . . . . . Weapon 1 | . . . . . . 1 . . . . . . . . . . . . . . . . . . Parts Attached 230 | 6 2 3 15 6 22 20 5 16 9 2 3 5 3 6 . 8 22 10 9 18 5 20 5 10 Power 16 | 1 . . 3 . 1 2 1 . 1 . . . . . . . 1 1 . 1 . 2 . 2 Engine 8 | 1 . . 3 . 1 . 1 . 1 . . . . . . . 1 . . . . . . . Core 5 | . . . . . . 2 . . . . . . . . . . . 1 . 1 . 1 . . Reactor 3 | . . . . . . . . . . . . . . . . . . . . . . 1 . 2 Propulsion 36 | 2 . 3 3 2 4 . 1 1 . . . . . . . . 2 . 1 5 . 8 1 3 Treads 16 | . . . . . 4 . 1 1 . . . . . . . . 2 . 1 . . 4 1 2 Leg 16 | 2 . 3 3 2 . . . . . . . . . . . . . . . 2 . 3 . 1 Wheel . | . . . . . . . . . . . . . . . . . . . . . . . . . Hover 4 | . . . . . . . . . . . . . . . . . . . . 3 . 1 . . Flight . | . . . . . . . . . . . . . . . . . . . . . . . . . Utility 90 | 1 2 . 3 4 8 17 2 8 3 2 . 1 3 2 . . 16 4 2 4 3 3 1 1 Device 53 | . . . 3 4 2 12 1 6 3 2 . 1 1 1 . . 8 4 2 2 1 . . . Storage 6 | 1 1 . . . 1 . . 1 . . . . . . . . . . . 1 . 1 . . Processor 10 | . 1 . . . 2 1 1 . . . . . 1 . . . 2 . . . . 2 . . Hackware 9 | . . . . . . 2 . 1 . . . . . . . . 3 . . 1 1 . 1 . Protection 12 | . . . . . 3 2 . . . . . . 1 1 . . 3 . . . 1 . . 1 Artifact . | . . . . . . . . . . . . . . . . . . . . . . . . . Weapon 88 | 2 . . 6 . 9 1 1 7 5 . 3 4 . 4 . 8 3 5 6 8 2 7 3 4 Energy Gun 28 | . . . 2 . 6 1 . 3 . . . . . 2 . 3 2 5 2 1 . . 1 . Energy Cannon 11 | . . . 3 . . . . . . . . 2 . . . . . . 3 . . 3 . . Ballistic Gun 31 | 2 . . 1 . 1 . . 3 4 . 3 1 . 1 . 3 1 . . 3 1 3 . 4 Ballistic Cannon 2 | . . . . . . . . . . . . . . . . . . . . . 1 . 1 . Launcher 13 | . . . . . 2 . 1 1 1 . . 1 . 1 . 2 . . 1 3 . . . . Special Weapon 1 | . . . . . . . . . . . . . . . . . . . . 1 . . . . Impact Weapon . | . . . . . . . . . . . . . . . . . . . . . . . . . Slashing Weapon 1 | . . . . . . . . . . . . . . . . . . . . . . . 1 . Piercing Weapon 1 | . . . . . . . . . . . . . . . . . . . . . . 1 . . Special Melee Weapon . | . . . . . . . . . . . . . . . . . . . . . . . . . Unidentified Prototypes 16 | . . . 1 2 2 . 1 1 . . . 1 . . . . . . . 7 . 1 . . Corrupted Parts 2 | . . . 1 . . . . . . . . . . 1 . . . . . . . . . . System Corruption 8 | . . . 4 . . . . . . . . . . 4 . . . . . . . . . . Parts Lost 75 | . . . 3 . 4 3 . 1 . . . . . 1 . 1 9 4 15 . 3 18 3 10 Power 8 | . . . 2 . 1 . . . . . . . . . . . 1 . 1 . . 2 . 1 Propulsion 19 | . . . . . 1 1 . . . . . . . . . . 2 . 3 . . 6 . 6 Utility 23 | . . . 1 . . 2 . 1 . . . . . . . . 4 2 5 . 1 5 1 1 Weapon 25 | . . . . . 2 . . . . . . . . 1 . 1 2 2 6 . 2 5 2 2 Highest Loss Streak 8 | . . . 1 . 4 2 . 1 . . . . . 1 . 1 2 2 7 . 2 8 2 5 To Critical Strikes 1 | . . . . . . . . . . . . . . . . . . . . . . . . 1 Average Slot Usage (%) 85 | . 86 100 96 99 95 99 91 91 91 92 78 92 91 87 73 72 79 93 70 57 74 44 35 37 Engine 6 | . 14 14 10 11 8 4 5 7 7 7 7 7 6 6 6 6 4 . . 3 . . . . Treads 10 | . . . . . 19 22 15 15 15 15 15 15 13 13 13 13 9 11 7 . . 2 15 10 Leg 7 | . 28 28 31 33 5 . . . . . . . . . . . . . . . . 3 . 2 Hover 1 | . . . . . . . . . . . . . . . . . . . . 14 17 6 . . Device 13 | . . . 10 10 15 7 12 17 23 23 23 23 26 25 13 13 15 22 10 8 15 7 . . Storage 7 | . 14 14 11 11 9 7 7 7 7 7 7 7 6 6 6 6 5 5 4 4 5 3 . . Processor 8 | . 1 14 11 11 11 14 9 7 7 7 7 7 13 7 6 6 6 17 15 . . 3 5 5 Hackware 3 | . . . . . . 6 7 4 . . . . . . . . 8 11 10 4 7 3 1 . Protection 4 | . . . . . 8 7 7 7 7 7 7 7 4 5 6 6 8 . . 4 5 1 . 2 Energy Gun 8 | . . . . . 13 23 15 20 . . 6 . . 11 13 6 14 16 13 1 . . 1 1 Energy Cannon 2 | . . . 14 22 1 . . . . . . . . . . . . . 1 . . 1 . . Ballistic Gun 7 | . 28 28 6 . . . . 2 22 23 2 22 20 1 . 11 2 . . 8 7 3 . 6 Naked Turns 149 | . . . . . . . . . . . . . . . . . . . 42 84 . 22 . 1 Heaviest Build 122 | 12 27 27 35 35 40 41 51 72 84 78 77 80 79 117 117 115 122 72 65 37 41 74 17 27 Greatest Support 93 | 20 20 20 35 35 60 60 90 90 90 90 90 90 90 90 90 90 93 93 93 50 49 75 90 60 Greatest Overweight (x) 17 | . 1 1 1 . 1 1 1 . . . . . . 1 1 1 1 . 17 . 2 3 2 . Average Overweight (x) . | . . 1 . . . . . . . . . . . . 1 1 . . 1 . . . . . Largest Inventory Capacity 20 | 8 15 15 15 15 15 15 15 20 20 20 20 20 20 20 20 20 20 20 20 5 5 5 5 5 Average Capacity 15 | 6 13 15 15 15 15 15 15 16 20 20 20 20 20 20 20 20 20 20 18 5 5 5 5 5 Most Carried 20 | . 3 8 15 15 15 15 15 20 20 20 20 20 20 20 20 20 20 20 18 5 5 5 5 4 Average Carried 13 | . 1 5 12 14 14 14 14 16 20 20 20 20 18 19 20 19 17 18 15 4 5 3 4 3 Final Capacity 20 | 8 15 15 15 15 15 15 15 20 20 20 20 20 20 20 20 20 20 20 5 5 5 5 5 5 Final Carried 20 | . 3 8 15 15 15 15 15 20 20 20 20 20 20 20 20 19 20 18 5 5 5 4 4 2 Class Distribution -------------------- 21% | Scavenger-Mutant 19% | Skirmisher 17% | Mutant 11% | Scavenger-Skirmisher 6% | Hacker-Tank 5% | Tank 4% | Scavenger-Gunner 4% | Gunner 3% | Scavenger-Tank 3% | Hacker-Mutant Dominant Class ---------------- Mutant | -10/Materials Mutant | -10/Mines Scavenger-Mutant | -9/Materials Scavenger-Mutant | -9/Mines Scavenger-Mutant | -8/Materials Skirmisher | -7/Factory Tank | -7/Waste Tank | -7/Factory Skirmisher | -7/Lower Caves Skirmisher | -7/Lower Caves Mutant | -7/Data Miner Skirmisher | -6/Proximity Caves Scavenger-Gunner | -6/Factory Scavenger-Skirmisher | -6/Waste Scavenger-Skirmisher | -6/Factory Scavenger-Skirmisher | -6/DSF Hacker-Tank | -5/Factory Scavenger-Skirmisher | -5/Upper Caves Scavenger-Skirmisher | -5/Upper Caves Hacker-Tank | -5/Warlord Hacker-Mutant | -4/Proximity Caves Hacker-Mutant | -4/Factory Mutant | -4/Upper Caves Mutant | -4/Upper Caves Resources | -11 -10 -10 -9 -9 -8 -7 -7 -7 -7 -7 -7 -6 -6 -6 -6 -6 -5 -5 -5 -5 -4 -4 -4 -4 ----------- Run | Yrd Mat Min Mat Min Mat Fac Was Fac Low Low Dat Pro Fac Was Fac DSF Fac Upp Upp War Pro Fac Upp Upp Matter Collected 4057 | 262 40 72 191 102 297 200 128 193 89 73 . 294 65 488 . 270 277 131 45 216 135 202 198 89 Remotely . | . . . . . . . . . . . . . . . . . . . . . . . . . Salvage Created 9257 | 65 120 133 752 191 1229 874 295 733 . 73 . 192 . 1446 . 570 1021 390 335 . 79 273 273 213 Parts 353 | 1 10 6 53 8 71 38 1 31 . 1 . 9 . 9 . 29 25 13 10 . 8 16 9 5 Haulers Intercepted 10 | . . . 2 . 5 1 . 2 . . . . . . . . . . . . . . . . Recyclers Shooed 4 | . . . . . 3 . . . . . . . . . . . 1 . . . . . . . Parts Field Recycled . | . . . . . . . . . . . . . . . . . . . . . . . . . Retrieved Matter . | . . . . . . . . . . . . . . . . . . . . . . . . . Parts Self-Destructed 74 | . . . . . . . . . 2 1 . 12 . . . . . 17 10 . 21 . 9 2 Prevented 3 | . . . . . . . . . . . . . . . . . . . . . . . 3 . Kills | -11 -10 -10 -9 -9 -8 -7 -7 -7 -7 -7 -7 -6 -6 -6 -6 -6 -5 -5 -5 -5 -4 -4 -4 -4 ------- Run | Yrd Mat Min Mat Min Mat Fac Was Fac Low Low Dat Pro Fac Was Fac DSF Fac Upp Upp War Pro Fac Upp Upp Combat Hostiles Destroyed 122 | . 2 4 11 4 14 11 1 7 . 1 . 6 . 6 . 9 18 7 8 . 4 3 4 2 Melee 6 | . . . . . . . . . . . . . . . . . . . . . . . 4 2 Guns 78 | . 2 4 1 . 10 11 . 5 . 1 . 6 . 2 . 7 16 5 5 . 3 . . . Cannons 16 | . . . 10 4 . . . . . . . . . . . . . . . . 1 1 . . AOE 13 | . . . . . 4 . 1 . . . . . . 3 . 2 1 . . . . 2 . . Classes Destroyed 20 | 1 3 1 4 1 1 1 1 1 . . . 1 . . . 3 1 . . . . 1 . . Worker 7 | . 1 . . . 3 2 . . . . . . . . . . . . . . . 1 . . Builder 4 | . . . . . 1 1 . 1 . . . . . . . . . . . . . 1 . . Tunneler 3 | . . . 1 . . . . . . . . . . . . . 2 . . . . . . . Hauler 10 | . . . 2 . 5 1 . 2 . . . . . . . . . . . . . . . . Recycler 13 | 1 . . 1 . 4 3 . 2 . . . . . . . . 1 . . . . 1 . . Operator 1 | . . . . . . . . . . . . . . . . . . . . . . 1 . . Drone 1 | . . . . . . . . . . . . 1 . . . . . . . . . . . . Watcher 6 | . 1 . 1 . 2 . . . . . . . . . . . . . . . . 2 . . Swarmer 15 | . . 1 . . 4 2 . . . . . 2 . . . . . . 2 . 4 . . . Saboteur 1 | . . . . . . . . . . . . . . . . . 1 . . . . . . . Grunt 43 | . 2 3 5 2 6 4 . 4 . . . . . . . 3 7 3 2 . . 1 1 . Brawler 4 | . . . . 2 . . . 1 . . . . . . . . . . . . . . 1 . Duelist 4 | . . . 1 . . . . 1 . . . . . . . . 1 1 . . . . . . Sentry 15 | . . . 5 . 4 2 . . . 1 . 1 . . . . 1 1 . . . . . . Specialist 4 | . . . . . . . . . . . . . . . . 4 . . . . . . . . Hunter 10 | . . . . . . . . . . . . . . . . 1 2 2 3 . . . . 2 Programmer 16 | . . . . . . 3 . 1 . . . 2 . . . . 6 . 1 . . 2 1 . Heavy 1 | . . . . . . . . . . . . . . . . 1 . . . . . . . . Compactor 7 | . . . . . . . 1 . . . . . . 6 . . . . . . . . . . Butcher 1 | . . . . . . . . . . . . . . . . . . . . . . . 1 . Martyr 1 | . . . . . . . . 1 . . . . . . . . . . . . . . . . Best Kill Streak 9 | 1 2 2 6 2 4 9 1 3 . 1 . 3 . 3 . 3 7 3 3 . 4 6 2 2 Combat Bots Only 5 | . 1 2 4 2 4 4 1 3 . 1 . 3 . 3 . 3 5 3 3 . 4 2 2 2 Max Kills in Single Turn 6 | 1 1 1 1 1 2 2 1 2 . 1 . 1 . 1 . 2 2 1 1 . 1 6 1 1 Gunslinging 1 | . . . . . . 1 . 1 . . . . . . . . 1 . . . . . . . Exploded 2 | . . . . . 2 . 1 . . . . . . 1 . 2 1 . . . . 2 . . Melee 1 | . . . . . . . . . . . . . . . . . . . . . . . 1 1 Uniques/NPCs Destroyed . | . . . . . . . . . . . . . . . . . . . . . . . . . Combat | -11 -10 -10 -9 -9 -8 -7 -7 -7 -7 -7 -7 -6 -6 -6 -6 -6 -5 -5 -5 -5 -4 -4 -4 -4 -------- Run | Yrd Mat Min Mat Min Mat Fac Was Fac Low Low Dat Pro Fac Was Fac DSF Fac Upp Upp War Pro Fac Upp Upp Hostile Shots Fired 1106 | . 9 24 60 13 46 104 . 15 . 9 . 7 3 1 . 67 142 47 108 19 45 236 28 123 Missed 309 | . 2 4 15 4 14 36 . 1 . 5 . 1 1 . . 21 32 7 19 4 18 87 6 32 Damage Taken 14469 | . 76 251 596 103 560 717 36 348 . 27 . 85 35 41 . 1258 1944 724 1714 282 444 3118 618 1492 Core 2376 | . 43 51 48 10 145 101 12 58 . 5 . 16 . . . 59 145 93 410 17 13 827 . 323 Absorbed by Shields 810 | . . . . . . . . . . . . . . . . . . . . 220 124 466 . . Ignored by Resistances 295 | . . . . . . . . . . . . . . . . . 169 . . 22 104 . . . Regen/Repaired (Parts) 248 | . . . . . . . 38 48 . . . 15 120 . . 27 . . . . . . . . Core Remaining (%) 73 | 100 . 62 . 85 73 . . . . . . 72 . . . 93 . . . . 32 . . . Volleys Fired 418 | 1 10 21 46 12 70 30 6 25 7 2 . 13 1 28 . 23 43 17 19 3 9 27 . 5 Largest 3 | 2 2 2 2 2 2 3 3 3 3 3 . 3 3 3 . 3 3 3 3 1 3 3 . 3 Hottest 260 | 40 40 40 116 116 122 177 152 171 84 84 . 84 84 196 . 240 240 242 240 260 260 203 . 100 Shots Fired 983 | 2 20 42 90 25 126 91 12 71 12 6 1 33 3 66 1 68 124 46 47 3 21 63 . 10 Gun 759 | 2 20 42 16 . 111 91 6 69 7 6 1 30 3 45 1 66 124 46 23 . 12 28 . 10 Cannon 167 | . . . 74 25 2 . . . . . . 2 . . . . . . 22 . 7 35 . . Launcher 57 | . . . . . 13 . 6 2 5 . . 1 . 21 . 2 . . 2 3 2 . . . Special . | . . . . . . . . . . . . . . . . . . . . . . . . . Kinetic 302 | 2 20 42 16 . 7 . . 5 7 6 . 30 3 23 . 43 19 . . . 19 51 . 9 Thermal 577 | . . . 37 12 104 91 6 64 . . 1 2 . 22 1 23 105 46 45 3 2 12 . 1 Explosive 35 | . . . . . . . 6 . 5 . . . . 21 . 1 . . 2 . . . . . Electromagnetic 69 | . . . 37 13 15 . . 2 . . . 1 . . . 1 . . . . . . . . Robot Hit Streak 31 | 2 6 8 10 3 14 27 14 16 10 15 16 5 6 28 3 9 31 28 18 7 6 5 . 2 Robot Miss Streak 7 | . 3 3 3 2 7 3 . 6 . . . 3 1 2 . 4 5 3 3 . 5 4 . 5 Penetration Max 1 | . . . . . . . . . . . . . . . . . . . . . 1 1 . . Secondary Targets 14 | . . 2 . . . 2 . 3 . . . . . . . 1 4 . 2 . . . . . Max Gunslinging Chain 1 | . . 1 . . . 1 . 1 . . . . . . . 1 1 . 1 . . . . . Shots Hit Robots 724 | 2 15 27 66 11 82 62 11 42 7 5 1 16 2 57 1 54 108 39 42 1 10 27 20 16 Core Hits 392 | 1 8 11 28 6 56 29 2 25 3 2 1 8 1 28 2 31 76 19 23 2 5 12 7 6 Critical Kills 1 | 1 . . . . . . . . . . . . . . . . . . . . . . . . Critical Parts Destroyed 2 | . . . . . . . . . . . . . . . . 1 . . . . . 1 . . Critical Strikes 24 | 1 . . . . 2 7 . 3 . . . . . . . 1 . 2 1 . 1 1 3 2 Burn 15 | . . . . . 2 7 . 3 . . . . . . . . . 2 1 . . . . . Destroy 3 | 1 . . . . . . . . . . . . . . . 1 . . . . . 1 . . Blast 1 | . . . . . . . . . . . . . . . . . . . . . 1 . . . Sever 5 | . . . . . . . . . . . . . . . . . . . . . . . 3 2 Melee Attacks 41 | . . . . . . . . . . . . . . . . . . . . . . 7 21 13 Impact . | . . . . . . . . . . . . . . . . . . . . . . . . . Slashing 30 | . . . . . . . . . . . . . . . . . . . . . . . 17 13 Piercing 11 | . . . . . . . . . . . . . . . . . . . . . . 7 4 . Sneak Attacks . | . . . . . . . . . . . . . . . . . . . . . . . . . Combat Hostiles . | . . . . . . . . . . . . . . . . . . . . . . . . . Follow-up Attacks 2 | . . . . . . . . . . . . . . . . . . . . . . . 2 . Damage Inflicted 21150 | 20 132 233 1320 211 1817 1357 773 1086 136 115 13 372 25 2767 31 1714 3114 977 1202 156 319 1901 727 632 Guns 12296 | 20 132 227 159 . 1482 1357 123 835 136 115 13 372 25 953 31 1100 3110 972 585 . 174 236 . 139 Cannons 2496 | . . . 1080 211 18 . . . . . . . . . . . . . 394 . 145 648 . . Explosions 4994 | . . . 81 . 316 . 650 251 . . . . . 1814 . 609 . . 223 156 . 894 . . Melee 1259 | . . . . . . . . . . . . . . . . . . . . . . 39 727 493 Ramming 105 | . . 6 . . 1 . . . . . . . . . . 5 4 5 . . . 84 . . Kinetic 3735 | 20 132 227 159 . 86 . . 58 136 115 . 372 25 424 . 650 279 . . . 319 594 . 139 Thermal 11235 | . . . 501 72 1439 1357 123 777 . . 13 . . 529 31 585 2831 972 979 156 . 870 . . Explosive 3291 | . . . . . . . 650 . . . . . . 1814 . 290 . . 223 . . 314 . . Electromagnetic 1525 | . . . 660 139 291 . . 251 . . . . . . . 184 . . . . . . . . Impact . | . . . . . . . . . . . . . . . . . . . . . . . . . Slashing 1089 | . . . . . . . . . . . . . . . . . . . . . . . 596 493 Piercing 170 | . . . . . . . . . . . . . . . . . . . . . . 39 131 . Highest Corruption 27 | . . . 4 4 2 1 1 2 1 1 1 1 . 27 27 27 4 4 4 4 . 19 26 26 Average Corruption 5 | . . . 4 4 1 1 1 1 1 1 1 1 . 18 27 27 3 4 4 4 . 9 22 26 Corruption Purged 2 | . . . . . . . . 2 . . . . . . . . . . . . . . . . Corruption Blocked 5 | . . . . . . . . . . . . . . . . . 5 . . . . . . . Effects 185 | . . . 4 18 11 4 5 3 8 1 5 6 . 21 3 18 5 11 11 . . 11 14 26 Message Errors 43 | . . . . 4 3 1 . 1 3 . 2 . . 6 1 5 1 1 2 . . 3 3 7 Matter Fused 45 | . . . 2 5 2 1 . 1 3 . . 4 . 7 . 2 . 5 1 . . 1 6 5 Heat Flow Errors 26 | . . . 1 1 2 . 1 . 1 . 1 . . 3 . 4 1 1 2 . . 1 1 6 Energy Discharges 19 | . . . 1 1 1 1 2 . . 1 . 2 . 1 1 . . . 2 . . 3 1 2 Parts Rejected 1 | . . . . . . . . . . . . . . . . . . . 1 . . . . . Parts Fused 3 | . . . . . . . . . . . 1 . . . . 2 . . . . . . . . Data Loss (minor) 22 | . . . . 4 2 . 1 . . . . . . 1 . 2 2 3 2 . . 2 1 2 Data Loss (major) 8 | . . . . . 1 . . . . . . . . 2 . 1 1 . 1 . . . 1 1 Misfires 7 | . . . . 1 . 1 . . 1 . 1 . . 1 1 . . 1 . . . . . . Alerts 7 | . . . . 2 . . 1 1 . . . . . . . 1 . . . . . . 1 1 Misdirections 2 | . . . . . . . . . . . . . . . . . . . . . . 1 . 1 Weapon Failures 2 | . . . . . . . . . . . . . . . . 1 . . . . . . . 1 Overload Shots . | . . . . . . . . . . . . . . . . . . . . . . . . . Overflow Damage 333 | . . . . . 16 . 2 . . . . . . . . . . . 67 . . 199 49 . Projectiles 96 | . . . . . . . . . . . . . . . . . . . 17 . . 79 . . Explosions 188 | . . . . . 16 . 2 . . . . . . . . . . . 50 . . 120 . . Melee 49 | . . . . . . . . . . . . . . . . . . . . . . . 49 . Knockbacks 6 | . . . . . . . . . . . . . . . . 1 . . . . 1 4 . . Impact 1 | . . . . . . . . . . . . . . . . 1 . . . . . . . . Kinetic 5 | . . . . . . . . . . . . . . . . . . . . . 1 4 . . Secondary . | . . . . . . . . . . . . . . . . . . . . . . . . . Self-Inflicted Damage 415 | . . . 15 . 122 . 38 11 . . . . . . . . . . 73 . . 156 . . Shots 13 | . . . 1 . 6 . 1 1 . . . . . . . . . . 2 . . 2 . . Rammed 11 | . . . . . 1 . . . . . . . . . . 1 2 1 . . . 6 . . Targets Rammed 20 | . . 1 . . 1 . . . . . . . . . . 1 2 1 . . . 14 . . Kicked 9 | . . 1 . . . . . . . . . . . . . . . . . . . 8 . . Crushed . | . . . . . . . . . . . . . . . . . . . . . . . . . Highest Temperature 415 | . 12 25 117 227 210 303 66 240 92 . 267 106 . 388 6 303 394 279 281 202 415 186 166 285 Average Temperature 84 | . 7 10 21 43 44 111 34 71 30 . 130 42 . 176 5 144 111 81 102 103 218 62 84 142 Received Heat Transfer 2538 | . 42 117 195 54 252 117 . 63 . 6 . . . . . 72 334 216 153 19 40 506 138 214 Effects 8 | . . . . . . . . . . . . . . . . 3 4 . . . 1 . . . Energy Bleed 2 | . . . . . . . . . . . . . . . . . 1 . . . 1 . . . Interference 6 | . . . . . . . . . . . . . . . . 3 3 . . . . . . . Siege Activations . | . . . . . . . . . . . . . . . . . . . . . . . . . Robots Corrupted 1 | . . . . . . . . 1 . . . . . . . . . . . . . . . . Combat Hostiles 1 | . . . . . . . . 1 . . . . . . . . . . . . . . . . Parts Fried 3 | . . . 3 . . . . . . . . . . . . . . . . . . . . . Impact Corruptions . | . . . . . . . . . . . . . . . . . . . . . . . . . Robots Melted 9 | . . . . . . . . 1 . . . . . 1 . 1 1 2 3 . . . . . Combat Hostiles 8 | . . . . . . . . 1 . . . . . 1 . . 1 2 3 . . . . . Parts Melted 49 | . . . . . 4 6 . 5 . . . 1 . . . 4 15 5 9 . . . . . Heat Transferred 21978 | . . . 988 148 2680 2960 222 1739 . . 37 . . 1200 75 1125 5900 1874 2014 320 . 696 . . Parts Sabotaged . | . . . . . . . . . . . . . . . . . . . . . . . . . Parts Stolen . | . . . . . . . . . . . . . . . . . . . . . . . . . Parts Stripped . | . . . . . . . . . . . . . . . . . . . . . . . . . Power Chain Reactions 6 | . . . 2 . 3 . . . . . . . . . . 1 . . . . . . . . Alert | -11 -10 -10 -9 -9 -8 -7 -7 -7 -7 -7 -7 -6 -6 -6 -6 -6 -5 -5 -5 -5 -4 -4 -4 -4 ------- Run | Yrd Mat Min Mat Min Mat Fac Was Fac Low Low Dat Pro Fac Was Fac DSF Fac Upp Upp War Pro Fac Upp Upp Peak Influence 688 | 5 95 146 237 100 260 216 141 688 . . . . 264 158 . 212 205 . . . . 536 . . Initial 224 | . 3 36 . 79 39 18 74 . . . . . 224 92 . . 111 . . . . 165 . . Average 144 | . 27 38 83 40 130 92 116 417 . . . . 234 114 . 115 128 . . . . 361 . . Maximum Alert Level 2 | . . . 1 . 1 1 . 2 . . . . 1 . . 1 1 . . . . 2 . . Low Security (%) 78 | 100 100 100 91 100 81 89 100 10 . . . . . 100 100 93 98 . . . . 18 . . Level 1 11 | . . . 8 . 18 10 . 34 . . . . 100 . . 6 1 . . . . 18 . . Level 2 9 | . . . . . . . . 54 . . . . . . . . . . . . . 63 . . Level 3 . | . . . . . . . . . . . . . . . . . . . . . . . . . Level 4 . | . . . . . . . . . . . . . . . . . . . . . . . . . Level 5 . | . . . . . . . . . . . . . . . . . . . . . . . . . High Security . | . . . . . . . . . . . . . . . . . . . . . . . . . Max Security . | . . . . . . . . . . . . . . . . . . . . . . . . . Sterilizations 1 | . . . . . . . . . . . . . . . . 1 . . . . . . . . Squads Dispatched 33 | . 3 . 3 . 2 3 . 5 . . . . 1 . . 2 9 . 1 . . 4 . . Investigation 8 | . 1 . 2 . 1 1 . . . . . . 1 . . . 2 . . . . . . . Extermination 7 | . . . . . . 2 . 2 . . . . . . . . 3 . . . . . . . Reinforcement 14 | . 2 . 1 . 1 . . 3 . . . . . . . 2 2 . . . . 3 . . Assault 3 | . . . . . . . . . . . . . . . . . 1 . 1 . . 1 . . Garrison 1 | . . . . . . . . . . . . . . . . . 1 . . . . . . . Intercept . | . . . . . . . . . . . . . . . . . . . . . . . . . Searches Triggered . | . . . . . . . . . . . . . . . . . . . . . . . . . Data Miner Redirects 1 | . . . . . . . . . . . . . . . . . . . . . . 1 . . Construction Impeded 3 | . . . . . . . . 1 . . . . . . . . . . . . . 2 . . Haulers Reinforced 1 | . . . . . . . . 1 . . . . . . . . . . . . . . . . Active Scanning Responses . | . . . . . . . . . . . . . . . . . . . . . . . . . Cargo Convoy Interrupts 1 | . . . . . . . . . . . . . . . . . 1 . . . . . . . Stealth | -11 -10 -10 -9 -9 -8 -7 -7 -7 -7 -7 -7 -6 -6 -6 -6 -6 -5 -5 -5 -5 -4 -4 -4 -4 --------- Run | Yrd Mat Min Mat Min Mat Fac Was Fac Low Low Dat Pro Fac Was Fac DSF Fac Upp Upp War Pro Fac Upp Upp Distress Signals 6 | . 1 . . . 2 . . 1 . . . . . . . . 2 . . . . . . . Communications Jammed . | . . . . . . . . . . . . . . . . . . . . . . . . . Distress Signals . | . . . . . . . . . . . . . . . . . . . . . . . . . Times Spotted 260 | . 6 7 20 4 24 13 3 29 . 1 . 8 1 6 . 10 29 6 12 22 10 28 15 6 Peak Tracking Total 12 | . 2 2 4 2 4 4 2 5 . 1 . 3 1 2 . 3 6 4 5 12 5 9 6 4 Tactical Retreats 18 | . . . . . 1 2 . . . . . 1 . . . 1 1 1 . . . 7 3 1 Traps | -11 -10 -10 -9 -9 -8 -7 -7 -7 -7 -7 -7 -6 -6 -6 -6 -6 -5 -5 -5 -5 -4 -4 -4 -4 ------- Run | Yrd Mat Min Mat Min Mat Fac Was Fac Low Low Dat Pro Fac Was Fac DSF Fac Upp Upp War Pro Fac Upp Upp Traps Triggered 8 | . 1 . 1 . . 3 . . . . . . 1 . . . . . . . . 2 . . Indirectly . | . . . . . . . . . . . . . . . . . . . . . . . . . Trap Hack Attempts . | . . . . . . . . . . . . . . . . . . . . . . . . . Triggered . | . . . . . . . . . . . . . . . . . . . . . . . . . Disarmed . | . . . . . . . . . . . . . . . . . . . . . . . . . Reprogrammed . | . . . . . . . . . . . . . . . . . . . . . . . . . Reused . | . . . . . . . . . . . . . . . . . . . . . . . . . Traps Extracted . | . . . . . . . . . . . . . . . . . . . . . . . . . Installed . | . . . . . . . . . . . . . . . . . . . . . . . . . Triggered 12 | . . . . . . . . . . 2 . . . . . . 1 . . 9 . . . . Machines | -11 -10 -10 -9 -9 -8 -7 -7 -7 -7 -7 -7 -6 -6 -6 -6 -6 -5 -5 -5 -5 -4 -4 -4 -4 ---------- Run | Yrd Mat Min Mat Min Mat Fac Was Fac Low Low Dat Pro Fac Was Fac DSF Fac Upp Upp War Pro Fac Upp Upp Machines Disabled 9 | . . . . . 4 . . 1 . . . 1 . . . . . . . . . 3 . . Max in Single Turn 2 | . . . . . 2 . . 1 . . . 1 . . . . . . . . . 2 . . Garrison Access 3 | . . . . . . . . 1 . . . . . . 1 . 1 . . . . . . . Machines Repaired . | . . . . . . . . . . . . . . . . . . . . . . . . . Machines Dismantled . | . . . . . . . . . . . . . . . . . . . . . . . . . Machines Sabotaged . | . . . . . . . . . . . . . . . . . . . . . . . . . Overloaded Fab Kills . | . . . . . . . . . . . . . . . . . . . . . . . . . Hacking | -11 -10 -10 -9 -9 -8 -7 -7 -7 -7 -7 -7 -6 -6 -6 -6 -6 -5 -5 -5 -5 -4 -4 -4 -4 --------- Run | Yrd Mat Min Mat Min Mat Fac Was Fac Low Low Dat Pro Fac Was Fac DSF Fac Upp Upp War Pro Fac Upp Upp Machines Accessed 32 | . 1 . 5 1 6 4 . 3 . . 4 1 1 . 2 . 1 . . . . 2 . 1 Terminals 19 | . 1 . 4 . 6 2 . 2 . . . . . . 1 . . . . . . 2 . 1 Fabricators . | . . . . . . . . . . . . . . . . . . . . . . . . . Repair Stations 2 | . . . . . . 1 . . . . . . 1 . . . . . . . . . . . Recycling Units 1 | . . . 1 . . . . . . . . . . . . . . . . . . . . . Scanalyzers . | . . . . . . . . . . . . . . . . . . . . . . . . . Garrison Access 4 | . . . . . . 1 . 1 . . . . . . 1 . 1 . . . . . . . Total Hacks 100 | . 2 . 16 1 15 7 . 12 . . 30 1 3 . 3 . 2 . . . . 7 . 1 Successful 66 | . 1 . 7 1 5 3 . 8 . . 30 1 2 . 2 . 2 . . . . 3 . 1 Failed 34 | . 1 . 9 . 10 4 . 4 . . . . 1 . 1 . . . . . . 4 . . Catastrophic 4 | . . . . . 2 . . . . . . . . . . . . . . . . 2 . . Database Lockouts . | . . . . . . . . . . . . . . . . . . . . . . . . . Manual 38 | . . . 11 . 6 2 . 10 . . . . . . . . 2 . . 1 . 6 . . Terminals 48 | . 2 . 9 . 15 3 . 10 . . . . . . 1 . . . . . . 7 . 1 Fabricators . | . . . . . . . . . . . . . . . . . . . . . . . . . Repair Stations 4 | . . . . . . 1 . . . . . . 3 . . . . . . . . . . . Recycling Units 7 | . . . 7 . . . . . . . . . . . . . . . . . . . . . Scanalyzers . | . . . . . . . . . . . . . . . . . . . . . . . . . Garrison Access 9 | . . . . . . 3 . 2 . . . . . . 2 . 2 . . . . . . . Terminal Hacks 54 | . 1 . 4 1 5 2 . 7 . . 30 1 . . 1 . . . . . . 1 . 1 Record 13 | . . . . . . . . . . . 11 1 . . . . . . . . . . . 1 Part Schematic 12 | . . . 1 . 1 . . . . . 10 . . . . . . . . . . . . . Robot Schematic 6 | . . . . . . . . . . . 6 . . . . . . . . . . . . . Robot Analysis 5 | . . . . . . . . 5 . . . . . . . . . . . . . . . . Prototype ID Bank 4 | . . . 1 . . . . . . . 3 . . . . . . . . . . . . . Open Door 1 | . . . . 1 . . . . . . . . . . . . . . . . . . . . Open DSF 2 | . . . . . . 1 . . . . . . . . 1 . . . . . . . . . Branch Access Points 4 | . . . 1 . . 1 . 1 . . . . . . . . . . . . . 1 . . Emergency Access Points 2 | . 1 . . . 1 . . . . . . . . . . . . . . . . . . . Terminal Index 1 | . . . . . 1 . . . . . . . . . . . . . . . . . . . Unreport Threat 2 | . . . 1 . 1 . . . . . . . . . . . . . . . . . . . Locate Traps 2 | . . . . . 1 . . 1 . . . . . . . . . . . . . . . . Fabricator Hacks . | . . . . . . . . . . . . . . . . . . . . . . . . . Repair Station Hacks 2 | . . . . . . . . . . . . . 2 . . . . . . . . . . . Scan Component 1 | . . . . . . . . . . . . . 1 . . . . . . . . . . . Repair 1 | . . . . . . . . . . . . . 1 . . . . . . . . . . . Recycling Unit Hacks . | . . . . . . . . . . . . . . . . . . . . . . . . . Scanalyzer . | . . . . . . . . . . . . . . . . . . . . . . . . . Garrison Access Hacks 2 | . . . . . . . . 1 . . . . . . 1 . . . . . . . . . Seal Access 2 | . . . . . . . . 1 . . . . . . 1 . . . . . . . . . Unauthorized Hacks 8 | . . . 3 . . 1 . . . . . . . . . . 2 . . . . 2 . . Terminals 3 | . . . . . . 1 . . . . . . . . . . . . . . . 2 . . Botnet 2 | . . . . . . 1 . . . . . . . . . . . . . . . 1 . . Disrupt 1 | . . . . . . . . . . . . . . . . . . . . . . 1 . . Fabricators . | . . . . . . . . . . . . . . . . . . . . . . . . . Repair Stations . | . . . . . . . . . . . . . . . . . . . . . . . . . Recycling Units 3 | . . . 3 . . . . . . . . . . . . . . . . . . . . . Monitor 1 | . . . 1 . . . . . . . . . . . . . . . . . . . . . Recyclers 1 | . . . 1 . . . . . . . . . . . . . . . . . . . . . Mask 1 | . . . 1 . . . . . . . . . . . . . . . . . . . . . Scanalyzers . | . . . . . . . . . . . . . . . . . . . . . . . . . Garrison Access 2 | . . . . . . . . . . . . . . . . . 2 . . . . . . . Broadcast 1 | . . . . . . . . . . . . . . . . . 1 . . . . . . . Reprogram 1 | . . . . . . . . . . . . . . . . . 1 . . . . . . . Data Cores Recovered . | . . . . . . . . . . . . . . . . . . . . . . . . . Used . | . . . . . . . . . . . . . . . . . . . . . . . . . Hacking Detections 20 | . 1 . 6 . 4 4 . 2 . . . . 1 . 1 . . . . . . 1 . . Full Trace Events 3 | . . . 1 . 1 . . . . . . . 1 . . . . . . . . . . . Feedback Events . | . . . . . . . . . . . . . . . . . . . . . . . . . Feedback Blocked . | . . . . . . . . . . . . . . . . . . . . . . . . . Robot Schematics Acquired 6 | . . . . . . . . . . . 6 . . . . . . . . . . . . . Robots Built . | . . . . . . . . . . . . . . . . . . . . . . . . . Authchips . | . . . . . . . . . . . . . . . . . . . . . . . . . Time . | . . . . . . . . . . . . . . . . . . . . . . . . . Total Robot Build Rating . | . . . . . . . . . . . . . . . . . . . . . . . . . Part Schematics Acquired 12 | . . . 1 . 1 . . . . . 10 . . . . . . . . . . . . . Parts Built . | . . . . . . . . . . . . . . . . . . . . . . . . . Authchips . | . . . . . . . . . . . . . . . . . . . . . . . . . Time . | . . . . . . . . . . . . . . . . . . . . . . . . . Total Part Build Rating . | . . . . . . . . . . . . . . . . . . . . . . . . . Parts Repaired 1 | . . . . . . . . . . . . . 1 . . . . . . . . . . . Time 44 | . . . . . . . . . . . . . 44 . . . . . . . . . . . Parts Recycled . | . . . . . . . . . . . . . . . . . . . . . . . . . Recycled Matter . | . . . . . . . . . . . . . . . . . . . . . . . . . Retrieved Matter . | . . . . . . . . . . . . . . . . . . . . . . . . . Retrieved Components . | . . . . . . . . . . . . . . . . . . . . . . . . . Parts Scanalyzed . | . . . . . . . . . . . . . . . . . . . . . . . . . Part Schematics Acquired . | . . . . . . . . . . . . . . . . . . . . . . . . . Parts Damaged . | . . . . . . . . . . . . . . . . . . . . . . . . . Bothacking | -11 -10 -10 -9 -9 -8 -7 -7 -7 -7 -7 -7 -6 -6 -6 -6 -6 -5 -5 -5 -5 -4 -4 -4 -4 ------------ Run | Yrd Mat Min Mat Min Mat Fac Was Fac Low Low Dat Pro Fac Was Fac DSF Fac Upp Upp War Pro Fac Upp Upp Used RIF Installer . | . . . . . . . . . . . . . . . . . . . . . . . . . Robots Hacked . | . . . . . . . . . . . . . . . . . . . . . . . . . Non-combat . | . . . . . . . . . . . . . . . . . . . . . . . . . Combat . | . . . . . . . . . . . . . . . . . . . . . . . . . Robot Hacks Applied . | . . . . . . . . . . . . . . . . . . . . . . . . . Relay Couplers Released 1 | . . . . . . . . . . . . . . . . . 1 . . . . . . . Machine Destruction 1 | . . . . . . . . . . . . . . . . . 1 . . . . . . . Fabnet Peak Effective % . | . . . . . . . . . . . . . . . . . . . . . . . . . Robots Rewired 5 | . . . . . . . . . . . . . . . . . . . . 5 . . . . Allies Hacked 2 | . . . . . . . . 1 . . . . . . . . . . . . . 1 . . Hacks Repelled . | . . . . . . . . . . . . . . . . . . . . . . . . . Allies | -11 -10 -10 -9 -9 -8 -7 -7 -7 -7 -7 -7 -6 -6 -6 -6 -6 -5 -5 -5 -5 -4 -4 -4 -4 -------- Run | Yrd Mat Min Mat Min Mat Fac Was Fac Low Low Dat Pro Fac Was Fac DSF Fac Upp Upp War Pro Fac Upp Upp Total Allies 30 | . . 2 . . . . 18 . 1 . . . . . . . 4 . . 5 . . . . Largest Group 18 | . . 2 1 . . . 18 12 4 3 3 3 3 3 2 2 1 . . 5 4 3 . . Highest-Rated Group 434 | . . 41 31 . . . 434 350 166 85 85 83 83 83 52 52 49 . . 269 204 163 . . Highest-Rated Ally 81 | . . 31 31 . . . 35 35 81 31 31 31 31 31 26 26 49 . . 65 65 65 . . Total Orders 5 | . . . . . . . . . 2 . . . . . . . 3 . . . . . . . EXPLORE 3 | . . . . . . . . . . . . . . . . . 3 . . . . . . . RETURN 2 | . . . . . . . . . 2 . . . . . . . . . . . . . . . Ally Attacks 398 | . . 11 11 . . . 135 130 9 . . 8 2 12 . . 34 . . 18 17 11 . . Total Damage 9328 | . . 209 152 . . . 3663 2461 120 . . 111 40 189 . . 262 . . 898 763 460 . . Kills 64 | . . 3 6 . . . 10 25 1 . . 1 1 . . . 3 . . 4 7 3 . . Allies Corrupted 2 | . . . . . . . . . . . . . . 1 . . . . . . . 1 . . Allies Melted 1 | . . . . . . . . . . . . . . . . . . . . 1 . . . . Intel | -11 -10 -10 -9 -9 -8 -7 -7 -7 -7 -7 -7 -6 -6 -6 -6 -6 -5 -5 -5 -5 -4 -4 -4 -4 ------- Run | Yrd Mat Min Mat Min Mat Fac Was Fac Low Low Dat Pro Fac Was Fac DSF Fac Upp Upp War Pro Fac Upp Upp Robot Analysis Total 5 | . . . . . . . . 5 . . . . . . . . . . . . . . . . Derelict Logs Recovered 16 | . . 2 . 2 . . . . 1 2 . 2 . . . . . 2 2 . 1 . . 2 Drone Launches 43 | . . . . . . . . . 12 . . . . . . . 31 . . . . . . . Drone Recoveries 37 | . . . . . . . . . 12 . . . . . . . 25 . . . . . . . Exploration | -11 -10 -10 -9 -9 -8 -7 -7 -7 -7 -7 -7 -6 -6 -6 -6 -6 -5 -5 -5 -5 -4 -4 -4 -4 ------------- Run | Yrd Mat Min Mat Min Mat Fac Was Fac Low Low Dat Pro Fac Was Fac DSF Fac Upp Upp War Pro Fac Upp Upp Turns Passed 14650 | 77 259 859 946 1027 1329 1088 447 1157 633 363 138 782 202 467 70 310 1205 470 575 575 392 470 371 438 Spaces Moved 7897 | 51 137 417 546 478 630 471 226 626 311 216 79 452 92 207 29 89 318 245 248 781 429 383 200 236 Core 522 | 3 . . . . . . . . . . . . . . . . . . 90 166 . 169 92 2 Treads 4360 | . . . . . 499 471 226 626 311 216 79 452 92 207 29 89 318 245 158 . . . 108 234 Legs 1852 | 48 137 417 546 478 131 . . . . . . . . . . . . . . 8 . 87 . . Wheels . | . . . . . . . . . . . . . . . . . . . . . . . . . Hover 1163 | . . . . . . . . . . . . . . . . . . . . 607 429 127 . . Flight . | . . . . . . . . . . . . . . . . . . . . . . . . . Fastest Speed 36 | 50 120 190 120 120 120 163 165 165 165 165 165 165 165 165 245 245 160 160 50 36 36 36 50 50 Average Speed 144 | 115 162 190 135 120 168 167 177 165 165 165 165 165 165 186 245 245 226 160 196 51 44 76 139 156 Slowest Speed 900 | 120 190 190 190 120 240 245 245 165 165 165 165 165 165 245 245 245 245 160 900 90 180 196 152 160 Overloaded Moves 179 | . . . . . . . . . . . . . . . . . . . . 6 137 36 . . Propulsion Burnouts . | . . . . . . . . . . . . . . . . . . . . . . . . . Robots Hopped . | . . . . . . . . . . . . . . . . . . . . . . . . . Cave-ins Triggered 1 | . . . . . . . . . . . . . . . . . . . . . . 1 . . Exploration Rate (%) 45 | 5 34 85 49 70 42 9 87 17 63 44 68 53 3 83 2 93 14 49 48 76 58 12 36 32 Regions Visited 24 Branch Regions 12 Pre-discovered Areas 5 | . . 1 . 1 . . . . . . 1 . . . . . . 1 1 . . . . . Known Exits Taken 14 | . 1 1 1 1 1 . . 1 1 1 1 1 . . 1 . 1 1 . . . 1 . . Unknown Exits Taken 5 | 1 . . . . . . . . . . . . . . . . . . 1 1 1 . 1 . Scrap Searched 13 | . . 2 . 2 . . . . . . . 4 . . . . . 2 . . 1 . 2 . Spaces Dug 34 | . . . . . . . . . 15 . . . . . . . . . . 4 . 15 . . Terrain Destroyed 388 | . . . 6 . 42 . 23 . 74 . . . . 110 . 8 . 1 20 7 13 84 . . Melee 5 | . . . . . . . . . . . . . . . . . . . . . . 5 . . Projectile 23 | . . . . . . . . . . . . . . . . . . 1 . . 3 19 . . AOE 360 | . . . 6 . 42 . 23 . 74 . . . . 110 . 8 . . 20 7 10 60 . . Terrain Rammed . | . . . . . . . . . . . . . . . . . . . . . . . . . Walls Destroyed . | . . . . . . . . . . . . . . . . . . . . . . . . . Machines Disabled . | . . . . . . . . . . . . . . . . . . . . . . . . . Actions | -11 -10 -10 -9 -9 -8 -7 -7 -7 -7 -7 -7 -6 -6 -6 -6 -6 -5 -5 -5 -5 -4 -4 -4 -4 --------- Run | Yrd Mat Min Mat Min Mat Fac Was Fac Low Low Dat Pro Fac Was Fac DSF Fac Upp Upp War Pro Fac Upp Upp Total 10280 | 64 157 448 665 907 774 705 262 714 425 219 89 472 142 256 29 120 677 286 291 945 610 490 261 272 Wait 1425 | 7 6 5 23 404 11 169 20 16 93 . . 1 44 11 1 . 282 10 16 70 167 28 34 7 Move 7875 | 50 136 416 545 477 629 471 225 625 310 215 78 451 92 206 28 88 317 244 247 780 428 382 199 236 Hop . | . . . . . . . . . . . . . . . . . . . . . . . . . Pick Up 86 | . 2 2 19 3 19 7 1 14 1 . . . 2 . . . 7 2 . 2 . 3 1 1 Fast Attach 97 | 6 2 . 5 2 7 . 3 5 3 . 3 2 1 3 . . 9 . 1 14 5 16 5 5 Attach 45 | . . . 4 . 4 4 . 3 . . . . 2 1 . 1 9 4 5 1 . 4 . 3 Detach 19 | . 1 . 2 . 1 . 2 1 . . . . . 2 . . 3 . . 3 . 3 1 . Swap 89 | . . 3 6 4 11 16 2 8 6 2 . 4 . 2 . 7 4 6 3 3 . . . 2 Drop 108 | . . . 15 5 21 8 3 16 5 . 8 1 . 3 . . 1 2 . 11 1 6 2 . Fire 418 | 1 10 21 46 12 70 30 6 25 7 2 . 13 1 28 . 23 43 17 19 3 9 27 . 5 Melee 39 | . . . . . . . . . . . . . . . . . . . . . . 7 19 13 Ram 6 | . . . . . . . . . . . . . . . . . . . . . . 6 . . Kick 9 | . . 1 . . . . . . . . . . . . . . . . . . . 8 . . Crush 5 | . . . . . 1 . . . . . . . . . . 1 2 1 . . . . . . Escape Stasis . | . . . . . . . . . . . . . . . . . . . . . . . . . Rewire 59 | . . . . . . . . 1 . . . . . . . . . . . 58 . . . . Trap . | . . . . . . . . . . . . . . . . . . . . . . . . . Miscellaneous . | . . . . . . . . . . . . . . . . . . . . . . . . . Route ------- -11/Scrapyard -10/Materials -10/Mines -9/Materials (discovered 4 exits: *Mat x2 / *Min / Sto) -9/Mines -8/Materials -7/Factory (discovered 2 exits: Low x2) -7/Waste -7/Factory (discovered 3 exits: *Fac / *Low x2) -7/Lower Caves -7/Lower Caves -7/Data Miner -6/Proximity Caves -6/Factory (discovered 2 exits: Fac x2) -6/Waste -6/Factory -6/DSF -5/Factory -5/Upper Caves -5/Upper Caves -5/Warlord -4/Proximity Caves -4/Factory (discovered 3 exits: *Upp x2 / Arm) -4/Upper Caves -4/Upper Caves History --------- Turn | Location | Event 4 | -11/Scrapyard | Discovered new exit (range 15) 78 | -11/Scrapyard | Entered Materials 325 | -10/Materials | Discovered new exit (range 7) 334 | -10/Materials | Build established: Mutant 335 | -10/Materials | Identified exit to Mines 337 | -10/Materials | Entered Mines 773 | -10/Mines | Learned location of Storage (-9) 805 | -10/Mines | Learned Materials terminal intel 1177 | -10/Mines | Discovered new exit (range 9) 1192 | -10/Mines | Identified exit to Materials 1196 | -10/Mines | Entered Materials 1196 | -9/Materials | Accompanied by 1 ally 1196 | -9/Materials | Evolved 2 slots: Propulsion x1, Utility x1 1197 | -9/Materials | Loaded intel: 11 terminal locations 1202 | -9/Materials | Led the pair of lost Derelicts to an unsafe place 1431 | -9/Materials | Identified exit to Mines 1431 | -9/Materials | Identified exit to Storage 1547 | -9/Materials | Build established: Scavenger-Mutant 1646 | -9/Materials | Discovered new exit (range 15) 1681 | -9/Materials | Identified exit to Materials 2095 | -9/Materials | Discovered exit to Materials (range 11) 2142 | -9/Materials | Entered Mines 2195 | -9/Mines | Found a damaged Exp. Sensor Array with a note attached 2202 | -9/Mines | Found Prototype Device 2203 | -9/Mines | Identified Exp. Sensor Array 2962 | -9/Mines | Learned location of Zion (-6) 3039 | -9/Mines | Learned Materials machine intel 3083 | -9/Mines | Found the Drone Emporium 3088 | -9/Mines | Found Prototype Device 3088 | -9/Mines | Identified Splice Drone Bay 3153 | -9/Mines | Discovered exit to Materials (range 14) 3169 | -9/Mines | Entered Materials 3169 | -8/Materials | Evolved 2 slots: Utility x2 3170 | -8/Materials | Loaded intel: 64 machine locations 3363 | -8/Materials | Lost 4 parts (1p1n2w) 4192 | -8/Materials | Discovered new exit (range 15) 4492 | -8/Materials | Identified exit to Factory 4498 | -8/Materials | Entered Factory 4498 | -7/Factory | Evolved 2 slots: Utility x1, Weapon x1 4808 | -7/Factory | Build established: Skirmisher 5101 | -7/Factory | Identified exit to Lower Caves 5586 | -7/Factory | Sucked down chute 5586 | -7/Factory | Entered Waste 5599 | -7/Waste | Spotted C-40 Crusher 5608 | -7/Waste | Destroyed C-40 Crusher 5633 | -7/Waste | Warlord forces began an assault 5651 | -7/Waste | Spotted C-40 Crusher 5654 | -7/Waste | Allies destroyed C-40 Crusher 5660 | -7/Waste | Spotted C-40 Crusher 5667 | -7/Waste | Allies destroyed C-40 Crusher 5667 | -7/Waste | Spotted C-40 Crusher 5674 | -7/Waste | Allies destroyed C-40 Crusher 5680 | -7/Waste | Spotted C-40 Crusher 5682 | -7/Waste | Allies destroyed C-40 Crusher 5710 | -7/Waste | Spotted C-40 Crusher 5712 | -7/Waste | Lost 4 allies 5718 | -7/Waste | Allies destroyed C-40 Crusher 5740 | -7/Waste | Found Prototype Processor 5740 | -7/Waste | Identified Exp. Melee Analysis Suite 5867 | -7/Waste | Discovered new exit (range 12) 6017 | -7/Waste | Identified exit to Factory 6033 | -7/Waste | Entered Factory 6033 | -7/Factory | Accompanied by 12 allies 6035 | -7/Factory | Build established: Tank 6146 | -7/Factory | Discovered new exit (range 3) 6156 | -7/Factory | Identified exit to Factory 6975 | -7/Factory | Lost 3 allies 7190 | -7/Factory | Entered Lower Caves 7190 | -7/Lower Caves | Accompanied by 3 allies 7323 | -7/Lower Caves | Build established: Skirmisher 7553 | -7/Lower Caves | Spotted B-75 Beast 7573 | -7/Lower Caves | Allies destroyed B-75 Beast 7672 | -7/Lower Caves | Learned location of 1 exit from Factory 7807 | -7/Lower Caves | Discovered new exit (range 8) 7817 | -7/Lower Caves | Identified exit to Lower Caves 7823 | -7/Lower Caves | Entered another Lower Caves area 7823 | -7/Lower Caves | Accompanied by 3 allies 7880 | -7/Lower Caves | Learned Factory garrison access intel 7882 | -7/Lower Caves | Attracted the attention of an 0b10 checkpoint 7952 | -7/Lower Caves | Learned Factory garrison access intel 8151 | -7/Lower Caves | Encountered a Warlord checkpoint 8169 | -7/Lower Caves | Discovered new exit (range 10) 8184 | -7/Lower Caves | Identified exit to Data Miner 8186 | -7/Lower Caves | Entered Data Miner 8186 | -7/Data Miner | Accompanied by 3 allies 8186 | -7/Data Miner | Discovered new exit (range 6) 8195 | -7/Data Miner | Identified exit to Proximity Caves 8219 | -7/Data Miner | Met Data Miner 8256 | -7/Data Miner | Learned location of Section 7 (-2) 8256 | -7/Data Miner | Acquired the access code to Warlord's prototype stash 8278 | -7/Data Miner | Received God Mode back door access code from Data Miner 8324 | -7/Data Miner | Entered Proximity Caves 8324 | -6/Proximity Caves | Accompanied by 3 allies 8326 | -6/Proximity Caves | Spotter reported a threat 8655 | -6/Proximity Caves | Found Alien Artifact 8655 | -6/Proximity Caves | Identified Dimensional Node Initializer 8655 | -6/Proximity Caves | Initialized slip node 8964 | -6/Proximity Caves | Discovered exit to Factory (range 14) 8997 | -6/Proximity Caves | Learned Factory security intel 9038 | -6/Proximity Caves | Attracted the attention of an 0b10 checkpoint 9048 | -6/Proximity Caves | Learned location of 1 exit from Factory 9106 | -6/Proximity Caves | Entered Factory 9106 | -6/Factory | Accompanied by 3 allies 9106 | -6/Factory | Evolved 2 slots: Utility x2 9107 | -6/Factory | Identified exit to Factory 9109 | -6/Factory | Loaded intel: 4 garrison access locations 9224 | -6/Factory | Repaired Imp. Medium Armor Plating 9308 | -6/Factory | Sucked down chute 9308 | -6/Factory | Entered Waste 9323 | -6/Waste | EMP discharged 9328 | -6/Waste | Spotted C-40 Crusher 9345 | -6/Waste | Crushed by Compactor (1 part destroyed, 1 dropped) 9347 | -6/Waste | Destroyed C-40 Crusher 9362 | -6/Waste | Spotted C-40 Crusher 9369 | -6/Waste | Spotted C-40 Crusher 9372 | -6/Waste | Destroyed C-40 Crusher 9382 | -6/Waste | Destroyed C-40 Crusher 9384 | -6/Waste | Spotted C-40 Crusher 9389 | -6/Waste | Destroyed C-40 Crusher 9411 | -6/Waste | Build established: Scavenger-Gunner 9423 | -6/Waste | EMP discharged 9423 | -6/Waste | System corruption reached 10% 9435 | -6/Waste | 3 allies followed down the chute 9446 | -6/Waste | Spotted C-40 Crusher 9453 | -6/Waste | Destroyed C-40 Crusher 9483 | -6/Waste | Spotted C-40 Crusher 9494 | -6/Waste | Destroyed C-40 Crusher 9523 | -6/Waste | EMP discharged 9524 | -6/Waste | Discovered new exit (range 15) 9547 | -6/Waste | Identified exit to Factory 9623 | -6/Waste | EMP discharged 9641 | -6/Waste | Found Damper Plating 9723 | -6/Waste | EMP discharged 9738 | -6/Waste | Build established: Scavenger-Skirmisher 9775 | -6/Waste | Entered Factory 9775 | -6/Factory | Accompanied by 2 allies 9776 | -6/Factory | Loaded intel: 4 garrison access locations 9845 | -6/Factory | Identified exit to DSF 9845 | -6/Factory | Entered DSF 9845 | -6/DSF | Accompanied by 2 allies 9902 | -6/DSF | Additional patrols routed to DSF 10057 | -6/DSF | Sterilization system engaged 10077 | -6/DSF | Ambient heat levels rising (+10) 10092 | -6/DSF | Ambient heat levels rising (+10) 10102 | -6/DSF | Discovered exit to Factory (range 14) 10107 | -6/DSF | Ambient heat levels rising (+10) 10122 | -6/DSF | Ambient heat levels rising (+10) 10137 | -6/DSF | Ambient heat levels rising (+10) 10152 | -6/DSF | Ambient heat levels rising (+10) 10155 | -6/DSF | Entered Factory 10155 | -5/Factory | Evolved 2 slots: Utility x2 10520 | -5/Factory | Garrison activated, responded to threat 10638 | -5/Factory | Lost 3 allies 11039 | -5/Factory | Build established: Hacker-Tank 11057 | -5/Factory | Discovered new exit (range 42) 11258 | -5/Factory | Lost 3 allies 11306 | -5/Factory | Cargo convoy interrupted 11358 | -5/Factory | Identified exit to Upper Caves 11360 | -5/Factory | Entered Upper Caves 11382 | -5/Upper Caves | Met a Warlord Commander 11383 | -5/Upper Caves | Learned location of Warlord (-5) 11384 | -5/Upper Caves | Warlord Commander delivered Encrypted Comm Array 11393 | -5/Upper Caves | Found Encrypted Comm Array 11475 | -5/Upper Caves | Attracted the attention of an 0b10 checkpoint 11507 | -5/Upper Caves | Identified exit to Upper Caves 11678 | -5/Upper Caves | Learned Factory terminal intel 11830 | -5/Upper Caves | Entered another Upper Caves area 11887 | -5/Upper Caves | Build established: Scavenger-Skirmisher 11889 | -5/Upper Caves | Lost 3 parts (1n2u) 12308 | -5/Upper Caves | Core integrity fell below 50% 12335 | -5/Upper Caves | Lost 4 parts (1p1n2w) 12354 | -5/Upper Caves | Attracted the attention of an 0b10 outpost 12363 | -5/Upper Caves | Released all parts (6) 12387 | -5/Upper Caves | Learned Factory security intel 12392 | -5/Upper Caves | Lost 7 parts (3u4w) 12403 | -5/Upper Caves | Discovered new exit (range 3) 12405 | -5/Upper Caves | Entered Warlord 12422 | -5/Warlord | System corruption cleaned by Quarantine Array 12480 | -5/Warlord | Met Warlord 12485 | -5/Warlord | Opened Warlord's prototype stash 12490 | -5/Warlord | Warlord's base attacked by MAIN.C 12499 | -5/Warlord | Found Prototype Hackware 12499 | -5/Warlord | Identified Ghost Barrier 12516 | -5/Warlord | Found Prototype Device 12516 | -5/Warlord | Identified Exp. Focal Shield 12522 | -5/Warlord | Found Prototype Reactor 12840 | -5/Warlord | Warlord forces counterattacked 12842 | -5/Warlord | Spotted Striker 12887 | -5/Warlord | Spotted Executioner 12919 | -5/Warlord | Spotted Striker 12930 | -5/Warlord | Lost 3 allies 12932 | -5/Warlord | Spotted Executioner 12951 | -5/Warlord | Discovered new exit (range 9) 12980 | -5/Warlord | Entered Proximity Caves 12980 | -4/Proximity Caves | Accompanied by 4 allies 12983 | -4/Proximity Caves | Lost 7 allies 13009 | -4/Proximity Caves | Spotted B-86 Titan 13054 | -4/Proximity Caves | Found Hvy. Reflective Plating 13064 | -4/Proximity Caves | Attracted the attention of an 0b10 checkpoint 13317 | -4/Proximity Caves | Discovered new exit (range 14) 13372 | -4/Proximity Caves | Entered Factory 13372 | -4/Factory | Accompanied by 3 allies 13372 | -4/Factory | Evolved 2 slots: Power x2 13374 | -4/Factory | Loaded intel: 26 terminal locations 13472 | -4/Factory | Identified exit to Upper Caves 13472 | -4/Factory | Identified exit to Armory 13495 | -4/Factory | Crushed by falling debris 13542 | -4/Factory | Lost 5 parts (1n2u2w) 13564 | -4/Factory | Identified Vortex Chain Reactor 13622 | -4/Factory | First assault squad dispatched 13646 | -4/Factory | Incoming assault squad redirected 13656 | -4/Factory | Lost 8 parts (2p2n1u3w) 13718 | -4/Factory | Released all parts (4) 13719 | -4/Factory | System corruption reached 10% 13747 | -4/Factory | Core integrity fell below 50% 13777 | -4/Factory | Lost 5 parts (3n2u) 13842 | -4/Factory | Entered Upper Caves 13862 | -4/Upper Caves | Ambushed by wild Derelicts 14022 | -4/Upper Caves | Build established: Mutant 14198 | -4/Upper Caves | Discovered new exit (range 11) 14213 | -4/Upper Caves | Entered another Upper Caves area 14296 | -4/Upper Caves | Learned Research stockpile data 14327 | -4/Upper Caves | Learned Research interactive machine intel 14375 | -4/Upper Caves | Core integrity fell below 20% 14416 | -4/Upper Caves | Lost 4 parts (3n1w) 14650 | -4/Upper Caves | Released all parts (4) 14651 | -4/Upper Caves | Destroyed by G-73 Enforcer with Phase Gun Last Messages --------------- 14588_ Imp. Medium Treads destroyed. 14592_ System corrupted: Matter fused (-5). 14608_ System corrupted: Matter fused (-7). 14615_ Critical hit (Burn: +37). 14624_ System corrupted: Heat flow error (+274). 14639_ Imp. Medium Treads destroyed. 14640_ System corrupted: Heat flow error (+227). 14641_ Slug penetrates G-73 Enforcer. 14642_ Hpw. Shotgun destroyed. 14642_ Critical hit (Burn: +50). 14645_ Lgt. Antimatter Reactor destroyed. 14645_ Critical hit (Burn: +37). 14647_ System corrupted: Hpw. Shotgun jammed. 14647_ Slug penetrates Wall. 14648_ Carbon-fiber Leg destroyed. 14648_ Imp. Light Armor Plating destroyed. 14650_ Released Coil Gun. 14650_ Released Imp. Armor Integrity Analyzer. 14650_ Released Hpw. Shotgun. 14650_ Released Vortex Chain Reactor. Map ----- +----------------------------------------------------+ | ?????????????????????????????????????????????????? | | ?????????????????????????????????????????????????? | | ?????????????????????????????????????????????????? | | ?????????????????????????????????????????????????? | | ?????????????????????????????????????????????????? | | ?????????????????????????????????????????????????? | | ?????????????????????????????????????????????????? | | ??????????????????????????????# "????????????????? | | ????????????????????????????? ????????????????? | | ????????????????????????????? "???????????????? | | ????????????????????????????? ??????????????? | | ????????????????????????????# ???????????????? | | ???????????????????????##### ????????????????? | | ??????????????????????## ?????????????????? | | ??????????????????????# ??????????????????? | | ??????????????????????# ???????????????????? | | ?????????????????????## ?####???????????????? | | ?????????????????????# ### ####????????????? | | ??????????? ######## ## #????????????? | | ???????????# #????????????? | | ???????????# ##???????????? | | ??????????? ####gg###### #???????????? | | ???????????????????????# *#????## ##???????????? | | ??????????????????????## [#?????## #????????????? | | ??????????????????????# [#??????# #????????????? | | ??????????????????????# @#??????# #????????????? | | ??????????????????????## ##?????# #????????????? | | ???????????????????????# ###???# #????????????? | | ???????????????????????# ##### #????????????? | | ?????????????????######## ## #????????????? | | ?????????????????# ##???????????? | | ?????????????????# ## #??# ??????? | | ?????????????????# ###### #### #?# ??????? | | ???????????????????????## #??# ## ?????? | | ??????????????????????## ### ?????? | | ??????????????????????# #??????? | | ??????????????????###?# #???????? | | ?????????????????## ### ### ##???????? | | ?????????????????# ### #????????? | | ?????????????????# ## #????????? | | ?????????????????##### ### #????????? | | ?????????????????????# #??###????????? | | ????????????????????## ## #?????????????? | | ???????????????????## ### ###???????????? | | ???????????????????# ####### ##??????????? | | ???????????????????## #????## #??????????? | | ????????????????????### #????## #??????????? | | ??????????????????????####???## ###??????????? | | ????????????????????????????## ###??????????? | | ????????????????????????????# #### ??? | +----------------------------------------------------+ Best States ------------- Heat Dissipation 81 Energy Generation 65 Energy Capacity 1350 Matter Stores 300 Matter Capacity 300 Sight Range 16 Robot Scan Range 20 Terrain Scan Range 20 Terrain Scan Density 85 EM Shielding 2 Corruption Containment 12 Armor Coverage 1825 Resistance: KI 30 Resistance: TH 25 Resistance: EM 90 Weapon Cycling 30 Phase Shifting 5 Evasion (%) 57 Targeting Accuracy 8 Core Analysis 6 Armor Integrity Analysis 40 Recoil Reduction 3 Particle Charging 20 Offensive Hacking 14 Defensive Hacking 30 Item Schematics ----------------- Hcp. Storage Unit | -9/Materials | Hacked Lrg. Storage Unit | -8/Materials | Hacked Combat Drone Bay | -7/Data Miner | Free Lgt. Regenerative Plating | -7/Data Miner | Free Cld. Aerolev Unit | -7/Data Miner | Free Exp. Weapon Shielding | -7/Data Miner | Free Scatter Rocket Array | -7/Data Miner | Free Field Propulsion Drive | -7/Data Miner | Free Imp. Transmission Jammer | -7/Data Miner | Free KE Penetrator | -7/Data Miner | Free Phase Cannon | -7/Data Miner | Free Adv. Power Amplifier | -7/Data Miner | Free Robot Schematics ------------------ M-14 Sweeper | -7/Data Miner | Free G-47 Trooper | -7/Data Miner | Free G-50 Soldier | -7/Data Miner | Free A-15 Conveyor | -7/Data Miner | Free B-48 Gladiator | -7/Data Miner | Free B-60 Warrior | -7/Data Miner | Free Fabricated ------------ Nothing Alien Tech Used ----------------- Dimensional Node Initializer Achievements -------------- None Challenges ------------ None Game ------ Seed ImprovedFissionDetonator Manual? 0 Play Time 01:54:32 Cumulative 619.2 hours Start 2024.03.15 @ 11:54:10 End 2024.03.15 @ 15:03:48 Sessions 1 Manual Loads 0 Difficulty Rogue Special Mode None Game No. 393 Rogue 393 Adventurer 0 Explorer 0 Win Type - Total 38 Types 25/1/6/6/0/0/0/0/0 Lore% 80 Gallery% 85 Achievement% 78 Wizard Run 0 Options --------- Layout 0 ASCII 1 Keyboard 1 Movement Numpad Keybinds 0 Fullscreen 1 Font 36/SmallcapsGlow++ Map View 76x50 Zoom Use 0% Tactical HUD 1 Map Filters NONE Filters NONE Steam 1 RUN: 033a67fc-b610-4d89-8d9d-5bd5589250ff